bitfinex-derivatives/quotes_BTCF0:USTF0_20260214
["timestamp","ask_amount","ask_price","bid_price","bid_amount"]
[1771032378436,0.029,69003.0,68998.0,0.01556]
[1771032378627,0.0145,69003.0,68998.0,0.01556]
[1771032379022,0.0145,69003.0,68998.0,0.01456]
[1771032379324,0.002,69002.0,68998.0,0.01556]
[1771032379730,0.002,69003.0,68998.0,0.01556]
[1771032382133,0.002,69003.0,68998.0,0.01456]
[1771032382439,0.001,69003.0,68998.0,0.01656]
[1771032382832,0.0155,69003.0,68998.0,0.01656]
[1771032383030,0.001,69003.0,68998.0,0.01656]
[1771032385141,0.0155,69003.0,68998.0,0.01656]
[1771032385438,0.0155,69003.0,68998.0,0.01856]
[1771032386535,0.03,69003.0,68998.0,0.01856]
[1771032386736,0.0155,69003.0,68998.0,0.01856]
[1771032388041,0.0145,69002.0,68998.0,0.01856]
[1771032388242,0.0155,69003.0,68998.0,0.01856]
[1771032388438,0.0145,69002.0,68998.0,0.01856]
[1771032388631,0.0155,69003.0,68998.0,0.01856]
[1771032389542,0.001,69003.0,68998.0,0.01856]
[1771032390343,0.0155,69003.0,68998.0,0.01856]
[1771032391743,0.001,69003.0,68998.0,0.01856]
[1771032393644,0.0155,69003.0,68998.0,0.01856]
[1771032393942,0.001,69003.0,68998.0,0.01856]
[1771032396946,0.001,69003.0,68998.0,0.02256]
[1771032399444,0.01456,69004.0,68998.0,0.01456]
[1771032399648,0.001,69003.0,68998.0,0.02356]
[1771032401550,0.01556,69004.0,68998.0,0.02356]
[1771032402151,0.01456,69004.0,68998.0,0.01456]
[1771032402353,0.001,69003.0,68998.0,0.02356]
[1771032402747,0.01456,69004.0,68998.0,0.01456]
[1771032403048,0.01556,69004.0,68998.0,0.02356]
[1771032404352,0.01456,69004.0,68998.0,0.01456]
[1771032404552,0.001,69003.0,68998.0,0.02356]
[1771032405152,0.01456,69004.0,68998.0,0.01456]
[1771032406044,0.001,69003.0,68998.0,0.02356]
[1771032407048,6.1e-05,69005.0,68998.0,0.25623069]
[1771032407251,0.01456,69005.0,68998.0,0.25623069]
[1771032407649,0.001,69004.0,68998.0,0.25423069]
[1771032408056,0.015499,69004.0,68998.0,0.25423069]
[1771032408257,0.014499,69004.0,68998.0,0.25423069]
[1771032408957,0.015499,69004.0,68998.0,0.25423069]
[1771032414457,0.001,69004.0,68998.0,0.25423069]
[1771032417656,0.015499,69004.0,68998.0,0.25423069]
[1771032420453,0.014497,69016.0,68999.0,0.0145]
[1771032420659,0.01456,69014.0,69004.0,0.23267069]
[1771032420869,0.014498,69012.0,69006.0,0.23267069]
[1771032421059,0.01456,69014.0,69006.0,0.23267069]
[1771032421263,0.01456,69014.0,69002.0,0.21941169]
[1771032421455,0.2448389,69014.0,69000.0,0.145]
[1771032421654,0.2448389,69014.0,69000.0,0.01456]
[1771032421857,0.0145,69002.0,69000.0,0.01456]
[1771032422165,0.01456,69008.0,69002.0,0.21941169]
[1771032422360,0.014498,69011.0,69002.0,0.21941169]
[1771032422562,0.01456,69015.0,69007.0,0.21941169]
[1771032422863,0.2034,69040.0,69014.0,0.21941169]
[1771032422864,0.01456,69023.0,69014.0,0.21941169]
[1771032423064,0.01456,69023.0,69014.0,0.23397169]
[1771032423265,0.014497,69018.0,69014.0,0.23397169]
[1771032423465,0.014497,69017.0,69014.0,0.23397169]
[1771032423662,0.01249698,69017.0,69014.0,0.23397169]
[1771032423866,0.014497,69018.0,69014.0,0.23397169]
[1771032424166,0.014496,69019.0,69014.0,0.23897169]
[1771032424366,0.014496,69022.0,69014.0,0.23897169]
[1771032424564,0.014496,69021.0,69014.0,0.23897169]
[1771032424768,0.014496,69021.0,69014.0,0.23697169]
[1771032425262,0.014496,69019.0,69014.0,0.23397169]
[1771032425461,0.014496,69019.0,69014.0,0.23697169]
[1771032427268,0.014496,69020.0,69014.0,0.23397169]
[1771032427568,0.01456,69023.0,69014.0,0.23697169]
[1771032428155,0.014496,69020.0,69014.0,0.01756]
[1771032428361,0.014496,69020.0,69014.0,0.01456]
[1771032428568,0.014496,69020.0,69014.0,0.01656]
[1771032428960,0.014496,69018.0,69014.0,0.01656]
[1771032430556,0.014496,69018.0,69014.0,0.01456]
[1771032430762,0.014496,69019.0,69014.0,0.01656]
[1771032433369,0.014496,69018.0,69014.0,0.01656]
[1771032434667,0.014496,69019.0,69014.0,0.01456]
[1771032435077,0.014496,69019.0,69014.0,0.01656]
[1771032435673,0.014493,69036.0,69020.0,0.21941169]
[1771032435880,0.014493,69036.0,69022.0,0.21941169]
[1771032435881,0.15956,69035.0,69022.0,0.21941169]
[1771032436371,0.15956,69035.0,69021.0,0.01456]
[1771032436767,0.014493,69033.0,69021.0,0.01456]
[1771032436972,0.014495,69028.0,69021.0,0.01456]
[1771032437175,0.014495,69027.0,69021.0,0.01456]
[1771032438379,0.014494,69028.0,69021.0,0.01456]
[1771032439471,0.002,69027.0,69021.0,0.01456]
[1771032439970,0.029054,69029.0,69021.0,0.01456]
[1771032439971,0.01456,69029.0,69021.0,0.23397169]
[1771032440178,0.145,69035.0,69021.0,0.23397169]
[1771032440179,0.029054,69031.0,69023.0,0.21941169]
[1771032440576,0.01456,69032.0,69024.0,0.23397169]
[1771032440779,0.014493,69034.0,69024.0,0.23397169]
[1771032441078,0.01456,69035.0,69026.0,0.23390669]
[1771032441272,0.01456,69035.0,69028.0,0.21941169]
[1771032441579,0.01456,69036.0,69028.0,0.21941169]
[1771032442172,0.01456,69036.0,69028.0,0.23390569]
[1771032442366,0.01456,69039.0,69032.0,0.21941169]
[1771032443978,0.01456,69039.0,69032.0,0.22041169]
[1771032444473,0.029052,69039.0,69032.0,0.22041169]
[1771032445476,0.043544,69039.0,69032.0,0.22041169]
[1771032446782,0.029052,69039.0,69032.0,0.22041169]
[1771032447082,0.014492,69038.0,69032.0,0.22041169]
[1771032447277,0.014491,69043.0,69032.0,0.22041169]
[1771032447483,0.01452,69042.0,69034.0,0.21941169]
[1771032447685,0.014492,69040.0,69034.0,0.21941169]
[1771032448183,0.014492,69039.0,69034.0,0.21941169]
[1771032448484,0.014492,69039.0,69030.0,0.014494]
[1771032448485,0.014493,69034.0,69028.0,0.01452]
[1771032448675,0.028986,69034.0,69028.0,0.01452]
[1771032448872,0.014493,69033.0,69028.0,0.01452]
[1771032449077,0.014494,69032.0,69028.0,0.01452]
[1771032449776,0.014494,69031.0,69028.0,0.01452]
[1771032449982,0.014494,69029.0,69026.0,0.01452]
[1771032450279,0.014494,69032.0,69026.0,0.01452]
[1771032450680,0.014494,69032.0,69028.0,0.004]
[1771032451884,0.014494,69031.0,69026.0,0.01452]
[1771032452086,0.014494,69028.0,69026.0,0.01452]
[1771032452287,0.014494,69028.0,69026.0,0.01652]
[1771032452784,0.014495,69027.0,69026.0,0.01452]
[1771032452979,0.014495,69027.0,69020.0,0.01452]
[1771032453286,0.014495,69026.0,69020.0,0.01452]
[1771032453488,0.014494,69028.0,69020.0,0.01452]
[1771032453993,0.014495,69027.0,69020.0,0.01652]
[1771032454491,0.01452,69026.0,69020.0,0.031016]
[1771032454880,0.01452,69026.0,69021.0,0.014496]
[1771032455089,0.01452,69026.0,69020.0,0.031016]
[1771032455489,0.01452,69026.0,69020.0,0.016496]
[1771032455786,0.014492,69039.0,69027.0,0.014495]
[1771032455980,0.014493,69037.0,69029.0,0.014494]
[1771032456684,0.173972,69038.0,69029.0,0.014494]
[1771032458186,0.014492,69037.0,69027.0,0.014494]
[1771032458397,0.014492,69037.0,69026.0,0.014495]
[1771032458587,0.016492,69037.0,69026.0,0.014495]
[1771032458886,0.002,69037.0,69027.0,0.014495]
[1771032459089,0.173972,69038.0,69027.0,0.014495]
[1771032459292,0.175972,69038.0,69027.0,0.014495]
[1771032459493,0.014493,69033.0,69025.0,0.01452]
[1771032459696,0.014494,69031.0,69023.0,0.01452]
[1771032460085,0.014494,69030.0,69023.0,0.01452]
[1771032460287,0.014494,69031.0,69023.0,0.01452]
[1771032461086,0.014494,69031.0,69021.0,0.014496]
[1771032461287,0.028988,69031.0,69021.0,0.014496]
[1771032461491,0.014494,69030.0,69021.0,0.014496]
[1771032461786,0.01452,69029.0,69023.0,0.001]
[1771032462298,0.01452,69029.0,69023.0,0.014495]
[1771032462493,0.01452,69029.0,69022.0,0.014496]
[1771032462683,0.01452,69029.0,69021.0,0.014496]
[1771032462993,0.01552,69029.0,69021.0,0.014496]
[1771032464195,0.030014,69029.0,69021.0,0.014496]
[1771032464494,0.01552,69029.0,69022.0,0.014495]
[1771032464891,0.014492,69042.0,69029.0,0.22819533]
[1771032465096,0.014492,69040.0,69032.0,0.22819533]
[1771032465284,0.01452,69039.0,69031.0,0.014494]
[1771032466294,0.029012,69039.0,69031.0,0.014494]
[1771032466494,0.01452,69039.0,69033.0,0.014493]
[1771032466894,0.01752,69039.0,69033.0,0.014493]
[1771032467692,0.003,69039.0,69034.0,0.014493]
[1771032467892,0.01452,69038.0,69033.0,0.014493]
[1771032468797,0.029012,69038.0,69029.0,0.014494]
[1771032469194,0.043504,69038.0,69029.0,0.014494]
[1771032469395,0.045504,69038.0,69029.0,0.014494]
[1771032469799,0.031012,69038.0,69029.0,0.014494]
[1771032470003,0.029012,69038.0,69029.0,0.014494]
[1771032470201,0.043504,69038.0,69029.0,0.014494]
[1771032470392,0.029012,69038.0,69030.0,0.014494]
[1771032470593,0.01452,69038.0,69032.0,0.014493]
[1771032471101,0.028984,69042.0,69032.0,0.014493]
[1771032471293,0.01452,69041.0,69032.0,0.014493]
[1771032471494,0.014492,69040.0,69032.0,0.014493]
[1771032471994,0.01452,69039.0,69032.0,0.014493]
[1771032472797,0.014491,69044.0,69032.0,0.01452]
[1771032473002,0.029011,69043.0,69034.0,0.014493]
[1771032474502,0.014492,69042.0,69033.0,0.014493]
[1771032474698,0.01452,69041.0,69033.0,0.014493]
[1771032475400,0.014492,69042.0,69033.0,0.014493]
[1771032475594,0.01452,69041.0,69033.0,0.014493]
[1771032476504,0.01452,69041.0,69034.0,0.014493]
[1771032476801,0.01452,69041.0,69033.0,0.014493]
[1771032477003,0.24181062,69040.0,69029.0,0.01452]
[1771032477197,0.24181062,69040.0,69021.0,0.014496]
[1771032477198,0.014493,69036.0,69021.0,0.014496]
[1771032477398,0.014493,69034.0,69026.0,0.014495]
[1771032477696,0.014493,69034.0,69025.0,0.014495]
[1771032478404,0.01452,69035.0,69028.0,0.014494]
[1771032479498,0.01452,69035.0,69026.0,0.014495]
[1771032479499,0.029013,69035.0,69026.0,0.014495]
[1771032479699,0.014493,69034.0,69028.0,0.002]
[1771032479894,0.028986,69034.0,69028.0,0.002]
[1771032480598,0.014493,69033.0,69028.0,0.002]
[1771032481206,0.014494,69032.0,69028.0,0.002]
[1771032481407,0.014493,69033.0,69026.0,0.017495]
[1771032481708,0.014494,69032.0,69026.0,0.017495]
[1771032482006,0.014494,69032.0,69028.0,0.002]
[1771032482509,0.014494,69031.0,69025.0,0.014495]
[1771032482702,0.014494,69031.0,69026.0,0.003]
[1771032483508,0.014493,69034.0,69026.0,0.003]
[1771032483912,0.014493,69033.0,69026.0,0.003]
[1771032484209,0.014493,69033.0,69024.0,0.029015]
[1771032484510,0.014493,69033.0,69026.0,0.014495]
[1771032484903,0.014493,69033.0,69026.0,0.015495]
[1771032485404,0.014493,69033.0,69026.0,0.014495]
[1771032485598,0.014493,69034.0,69026.0,0.014495]
[1771032486005,0.014493,69034.0,69026.0,0.015495]
[1771032486205,0.014493,69034.0,69026.0,0.02999]
[1771032486406,0.014493,69034.0,69027.0,0.014495]
[1771032486606,0.014493,69034.0,69028.0,0.014494]
[1771032487018,0.029013,69035.0,69029.0,0.014494]
[1771032488109,0.01452,69035.0,69030.0,0.014494]
[1771032488420,0.01552,69035.0,69030.0,0.014494]
[1771032490216,0.01452,69035.0,69030.0,0.014494]
[1771032490417,0.01652,69035.0,69030.0,0.014494]
[1771032493210,0.01652,69035.0,69029.0,0.014494]
[1771032493718,0.014495,69025.0,69018.0,0.014496]
[1771032493914,0.01452,69025.0,69014.0,0.14496]
[1771032494103,0.014496,69021.0,69010.0,0.014498]
[1771032494304,0.01452,69020.0,69014.0,0.014497]
[1771032494612,0.01452,69020.0,69012.0,0.029018]
[1771032494917,0.014497,69018.0,69011.0,0.01452]
[1771032495107,0.014496,69019.0,69011.0,0.029018]
[1771032495309,0.014496,69019.0,69012.0,0.014498]
[1771032496419,0.014497,69015.0,69007.0,0.014499]
[1771032496618,0.01452,69014.0,69007.0,0.014499]
[1771032497621,0.01452,69014.0,69008.0,0.014498]
[1771032497815,0.01452,69014.0,69007.0,0.002]
[1771032498020,0.01452,69014.0,69007.0,0.016499]
[1771032499917,0.01452,69014.0,69008.0,0.014499]
[1771032500916,0.01852,69014.0,69008.0,0.015499]
[1771032501123,0.033017,69014.0,69008.0,0.001]
[1771032501721,0.014498,69013.0,69008.0,0.001]
[1771032501925,0.033017,69014.0,69003.0,0.01452]
[1771032502124,0.014498,69013.0,69004.0,0.014499]
[1771032502517,0.014498,69012.0,69004.0,0.014499]
[1771032502718,0.01452,69011.0,69004.0,0.014499]
[1771032503020,0.014498,69010.0,69003.0,0.02902]
[1771032503217,0.01452,69011.0,69004.0,0.014499]
[1771032503218,0.029018,69011.0,69004.0,0.014499]
[1771032503424,0.01452,69011.0,69005.0,0.014499]
[1771032503923,0.029018,69011.0,69005.0,0.014499]
[1771032504728,0.029018,69011.0,69004.0,0.014499]
[1771032506625,0.043516,69011.0,69004.0,0.014499]
[1771032507023,0.014498,69010.0,69004.0,0.014499]
[1771032507221,0.01452,69011.0,69006.0,0.014499]
[1771032507425,0.01452,69014.0,69008.0,0.014498]
[1771032507626,0.01452,69014.0,69007.0,0.014499]
[1771032507824,0.01452,69014.0,69006.0,0.029019]
[1771032508532,0.01452,69014.0,69008.0,0.014499]
[1771032511840,0.001,69011.0,69008.0,0.014499]
[1771032512336,0.01652,69014.0,69008.0,0.014499]
[1771032513028,0.01452,69014.0,69009.0,0.014498]
[1771032513234,0.002,69011.0,69009.0,0.014498]
[1771032513627,0.002,69011.0,69008.0,0.014499]
[1771032513628,0.01452,69014.0,69008.0,0.014499]
[1771032513832,0.01652,69014.0,69007.0,0.014499]
[1771032515132,0.01452,69014.0,69007.0,0.014499]
[1771032515335,0.002,69011.0,69007.0,0.014499]
[1771032515844,0.01552,69014.0,69007.0,0.014499]
[1771032516240,0.01452,69014.0,69007.0,0.014499]
[1771032516539,0.001,69011.0,69007.0,0.014499]
[1771032516941,0.001,69011.0,69006.0,0.029019]
[1771032517941,0.014498,69013.0,69007.0,0.001]
[1771032518442,0.014498,69013.0,69006.0,0.029019]
[1771032518643,0.002,69011.0,69006.0,0.030019]
[1771032519041,0.014498,69013.0,69006.0,0.029019]
[1771032519246,0.016498,69013.0,69007.0,0.001]
[1771032519744,0.002,69011.0,69006.0,0.030019]
[1771032521443,0.017498,69013.0,69007.0,0.001]
[1771032521939,0.014498,69013.0,69006.0,0.029019]
[1771032522147,0.002,69011.0,69006.0,0.030019]
[1771032522644,0.014498,69013.0,69007.0,0.001]
[1771032522645,0.018498,69013.0,69007.0,0.001]
[1771032524146,0.014498,69013.0,69006.0,0.029019]
[1771032524346,0.002,69011.0,69006.0,0.030019]
[1771032524541,0.014498,69013.0,69006.0,0.030019]
[1771032524747,0.01452,69014.0,69006.0,0.030019]
[1771032524748,0.014498,69012.0,69006.0,0.029019]
[1771032524939,0.017498,69013.0,69007.0,0.001]
[1771032525338,0.014498,69013.0,69006.0,0.029019]
[1771032525541,0.002,69011.0,69006.0,0.030019]
[1771032526044,0.017498,69013.0,69007.0,0.001]
[1771032527340,0.014495,69027.0,69010.0,0.19774389]
[1771032527540,0.014497,69018.0,69011.0,0.014498]
[1771032528047,0.014497,69018.0,69011.0,0.028996]
[1771032528546,0.029016,69019.0,69012.0,0.014498]
[1771032529535,0.004,69018.0,69012.0,0.014498]
[1771032531151,0.01452,69019.0,69012.0,0.016498]
[1771032531651,0.01452,69019.0,69012.0,0.014498]
[1771032531852,0.029016,69019.0,69012.0,0.014498]
[1771032532352,0.029016,69019.0,69012.0,0.016498]
[1771032535354,0.029016,69019.0,69012.0,0.014498]
[1771032535655,0.029016,69019.0,69012.0,0.003]
[1771032536553,0.014497,69018.0,69012.0,0.003]
[1771032538141,0.015497,69018.0,69010.0,0.029018]
[1771032539356,0.014497,69017.0,69010.0,0.029018]
[1771032540845,0.21085172,69042.0,69020.0,0.20962772]
[1771032541053,0.014493,69037.0,69021.0,0.01452]
[1771032541253,0.014494,69031.0,69022.0,0.014496]
[1771032541554,0.029014,69031.0,69023.0,0.014495]
[1771032542053,0.029014,69031.0,69021.0,0.029016]
[1771032542054,0.22537172,69031.0,69021.0,0.01452]
[1771032542351,0.22537172,69031.0,69012.0,0.014498]
[1771032542352,0.014496,69021.0,69012.0,0.014498]
[1771032542656,0.014496,69019.0,69013.0,0.01452]
[1771032543252,0.014497,69018.0,69013.0,0.01452]
[1771032543455,0.014497,69018.0,69013.0,0.029017]
[1771032543757,0.014496,69020.0,69013.0,0.029017]
[1771032544359,0.028992,69020.0,69013.0,0.029017]
[1771032544652,0.028992,69020.0,69014.0,0.014497]
[1771032544858,0.014496,69019.0,69014.0,0.014497]
[1771032545556,0.01452,69022.0,69014.0,0.014497]
[1771032545758,0.014496,69022.0,69018.0,0.014496]
[1771032547358,0.016496,69022.0,69018.0,0.014496]
[1771032547657,0.002,69022.0,69019.0,0.014496]
[1771032548863,0.01452,69024.0,69019.0,0.014496]
[1771032549063,0.002,69022.0,69019.0,0.014496]
[1771032549262,0.002,69022.0,69020.0,0.014496]
[1771032549663,0.002,69022.0,69021.0,0.014496]
[1771032549964,0.014494,69029.0,69023.0,0.014495]
[1771032550161,0.14496,69036.0,69030.0,0.014494]
[1771032550465,0.01452,69035.0,69029.0,0.014494]
[1771032551766,0.01952,69035.0,69029.0,0.014494]
[1771032553258,0.005,69035.0,69029.0,0.014494]
[1771032553460,0.01452,69034.0,69029.0,0.014494]
[1771032554566,0.01452,69034.0,69027.0,0.014495]
[1771032555268,0.01752,69034.0,69027.0,0.014495]
[1771032555671,0.01452,69034.0,69027.0,0.014495]
[1771032555879,0.01652,69034.0,69027.0,0.014495]
[1771032556568,0.014493,69033.0,69026.0,0.24865521]
[1771032556770,0.014493,69033.0,69025.0,0.014495]
[1771032556963,0.014493,69033.0,69024.0,0.014495]
[1771032557968,0.017493,69033.0,69024.0,0.014495]
[1771032558568,0.014494,69032.0,69024.0,0.014495]
[1771032560465,0.017494,69032.0,69024.0,0.014495]
[1771032560965,0.017494,69032.0,69024.0,0.02899]
[1771032561268,0.032014,69032.0,69024.0,0.02899]
[1771032561572,0.032014,69032.0,69024.0,0.014495]
[1771032561973,0.032014,69032.0,69024.0,0.02899]
[1771032562972,0.032014,69032.0,69024.0,0.014495]
[1771032564572,0.031014,69032.0,69024.0,0.014495]
[1771032564769,0.045508,69032.0,69024.0,0.014495]
[1771032565271,0.031014,69032.0,69024.0,0.014495]
[1771032566069,0.014494,69031.0,69024.0,0.014495]
[1771032567663,0.001,69031.0,69016.0,0.20962772]
[1771032567868,0.014495,69026.0,69019.0,0.40762207]
[1771032568271,0.014495,69025.0,69019.0,0.39312607]
[1771032568662,0.014495,69025.0,69019.0,0.40762207]
[1771032570068,0.21085172,69050.0,69029.0,0.22412172]
[1771032570280,0.21085172,69050.0,69035.0,0.014493]
[1771032570281,0.014492,69041.0,69035.0,0.014493]
[1771032570477,0.014492,69042.0,69035.0,0.029013]
[1771032570778,0.014491,69043.0,69035.0,0.01452]
[1771032570779,0.014492,69041.0,69035.0,0.01452]
[1771032571075,0.01452,69044.0,69040.0,0.014492]
[1771032571280,0.01452,69044.0,69039.0,0.014492]
[1771032571470,0.01449,69048.0,69041.0,0.014492]
[1771032571670,0.01452,69047.0,69041.0,0.014492]
[1771032571871,0.01452,69046.0,69040.0,0.014492]
[1771032572273,0.02901,69048.0,69040.0,0.014492]
[1771032572484,0.014491,69047.0,69039.0,0.029012]
[1771032573076,0.02901,69048.0,69040.0,0.014492]
[1771032573271,0.003,69041.0,69039.0,0.029012]
[1771032573476,0.01449,69047.0,69039.0,0.029012]
[1771032573677,1.26707738,69104.0,69039.0,0.029012]
[1771032573678,0.014489,69055.0,69039.0,0.22131896]
[1771032573873,0.029009,69052.0,69044.0,0.028982]
[1771032574086,0.029009,69052.0,69045.0,0.014491]
[1771032574281,0.007,69048.0,69044.0,0.014491]
[1771032575284,0.007,69048.0,69042.0,0.029011]
[1771032575484,0.007,69048.0,69044.0,0.014491]
[1771032575879,0.01452,69052.0,69044.0,0.014491]
[1771032576080,0.01449,69051.0,69042.0,0.029011]
[1771032576281,0.20785263,69050.0,69038.0,0.029012]
[1771032576585,0.014491,69046.0,69038.0,0.01452]
[1771032576986,0.014491,69045.0,69034.0,0.014493]
[1771032577186,0.20785363,69046.0,69035.0,0.029013]
[1771032577383,0.01452,69045.0,69040.0,0.014492]
[1771032577581,0.01452,69044.0,69040.0,0.014492]
[1771032579385,0.01452,69044.0,69039.0,0.014492]
[1771032579586,0.014491,69046.0,69039.0,0.014492]
[1771032580287,0.004,69044.0,69039.0,0.014492]
[1771032580785,0.014491,69043.0,69038.0,0.01452]
[1771032581087,0.003,69046.0,69042.0,0.014491]
[1771032581385,0.01449,69048.0,69042.0,0.014491]
[1771032581583,0.19180105,69060.0,69042.0,0.014491]
[1771032581788,0.014489,69053.0,69046.0,0.014491]
[1771032581982,0.01452,69052.0,69044.0,0.014491]
[1771032582193,0.01449,69050.0,69043.0,0.01452]
[1771032582383,0.01449,69049.0,69043.0,0.01452]
[1771032583588,0.002,69049.0,69043.0,0.01452]
[1771032584788,0.01452,69052.0,69045.0,0.014491]
[1771032585790,0.014494,69032.0,69023.0,0.014495]
[1771032585986,0.014494,69031.0,69023.0,0.014495]
[1771032586183,0.014494,69029.0,69021.0,0.01452]
[1771032586486,0.029014,69028.0,69020.0,0.014496]
[1771032586991,0.01452,69028.0,69020.0,0.014496]
[1771032587190,0.01452,69028.0,69023.0,0.005]
[1771032587690,0.029014,69028.0,69023.0,0.005]
[1771032587891,0.043509,69028.0,69023.0,0.005]
[1771032588085,0.029014,69028.0,69023.0,0.005]
[1771032588592,0.029014,69028.0,69020.0,0.014496]
[1771032588793,0.029014,69028.0,69020.0,0.021496]
[1771032589292,0.01452,69028.0,69023.0,0.006]
[1771032589794,0.029014,69028.0,69019.0,0.014496]
[1771032589995,0.029014,69028.0,69020.0,0.007]
[1771032590393,0.029014,69028.0,69019.0,0.014496]
[1771032590591,0.014495,69027.0,69023.0,0.005]
[1771032590785,0.029014,69028.0,69021.0,0.014496]
[1771032590985,0.014493,69033.0,69022.0,0.014496]
[1771032591186,0.15944,69032.0,69022.0,0.014496]
[1771032591390,0.014494,69031.0,69023.0,0.014495]
[1771032591894,0.014494,69030.0,69023.0,0.014495]
[1771032592096,0.014494,69029.0,69023.0,0.014495]
[1771032593194,0.014494,69029.0,69023.0,0.018495]
[1771032594097,0.014494,69029.0,69023.0,0.004]
[1771032596087,0.014494,69029.0,69023.0,0.005]
[1771032596594,0.028988,69031.0,69023.0,0.019495]
[1771032596997,0.014494,69031.0,69023.0,0.019495]
[1771032597502,0.014494,69031.0,69023.0,0.014495]
[1771032597701,0.19180105,69078.0,69024.0,0.19130519]
[1771032597910,0.19180105,69082.0,69073.0,0.014485]
[1771032598101,0.01456,69084.0,69070.0,0.01456]
[1771032598401,0.01456,69084.0,69074.0,0.014485]
[1771032598591,0.00207705,69081.0,69070.0,0.01456]
[1771032598791,0.01656105,69080.0,69070.0,0.01456]
[1771032599095,0.014484,69078.0,69069.0,0.24048307]
[1771032599301,0.014484,69078.0,69068.0,0.029086]
[1771032599504,0.0146,69079.0,69070.0,0.003]
[1771032599711,0.159443,69082.0,69068.0,0.01456]
[1771032599995,0.159443,69082.0,69070.0,0.002]
[1771032599996,0.014484,69078.0,69070.0,0.002]
[1771032600199,0.01456,69077.0,69070.0,0.002]
[1771032600394,0.01456,69077.0,69062.0,0.18326238]
[1771032600395,0.00999916,69072.0,69062.0,0.18326238]
[1771032600595,0.01456,69071.0,69060.0,0.029048]
[1771032600902,0.014486,69070.0,69060.0,0.01456]
[1771032601097,0.00897666,69070.0,69055.0,0.14492]
[1771032601308,0.02346266,69067.0,69058.0,0.84410184]
[1771032601601,0.0146,69066.0,69058.0,0.84410184]
[1771032601798,0.0146,69066.0,69055.0,0.014489]
[1771032602099,0.176451,69066.0,69045.0,0.14492]
[1771032602296,0.014487,69065.0,69054.0,0.014489]
[1771032602796,0.04774312,69065.0,69052.0,0.014489]
[1771032603111,0.03325612,69064.0,69055.0,0.014489]
[1771032603702,0.014487,69062.0,69051.0,0.014489]
[1771032603902,0.0146,69061.0,69051.0,0.014489]
[1771032604103,0.014488,69059.0,69051.0,0.84410184]
[1771032604297,0.014488,69058.0,69051.0,0.84410184]
[1771032604603,0.014489,69054.0,69047.0,0.01473563]
[1771032604903,0.014489,69052.0,69047.0,0.00013563]
[1771032605104,0.014489,69052.0,69042.0,0.40111324]
[1771032605105,0.014491,69047.0,69045.0,0.84410184]
[1771032605297,0.01449,69047.0,69042.0,0.80115428]
[1771032605490,0.0146,69048.0,69042.0,0.80115428]
[1771032605691,0.0146,69048.0,69043.0,0.01448958]
[1771032606299,0.01449,69047.0,69044.0,0.01448958]
[1771032606496,0.01449,69047.0,69038.0,0.0146]
[1771032606697,0.01449,69047.0,69042.0,0.01548958]
[1771032606898,0.014491,69046.0,69042.0,0.001]
[1771032607200,0.014491,69046.0,69043.0,0.01448958]
[1771032607404,0.014491,69046.0,69042.0,0.64163428]
[1771032607405,0.014491,69045.0,69042.0,0.64163428]
[1771032607704,0.02909,69048.0,69042.0,0.64163428]
[1771032607705,0.014491,69046.0,69042.0,0.65612386]
[1771032607901,0.02909,69048.0,69042.0,0.64163428]
[1771032608102,0.0146,69048.0,69040.0,0.54043648]
[1771032608295,0.014491,69044.0,69039.0,0.54043648]
[1771032608497,0.0146,69043.0,69038.0,0.54043648]
[1771032608698,0.0146,69043.0,69038.0,0.55492606]
[1771032608998,0.029091,69043.0,69038.0,0.54043648]
[1771032609199,0.0146,69043.0,69039.0,0.01448958]
[1771032609404,0.0146,69043.0,69040.0,0.54043648]
[1771032609405,0.029091,69043.0,69040.0,0.54043648]
[1771032609605,0.014491,69042.0,69040.0,0.54043648]
[1771032610500,0.029091,69043.0,69040.0,0.54043648]
[1771032610902,0.0146,69042.0,69040.0,0.54043648]
[1771032611405,0.0146,69042.0,69041.0,0.01448958]
[1771032612812,0.0156,69042.0,69041.0,0.01448958]
[1771032613302,0.014491,69046.0,69041.0,0.01448958]
[1771032613508,0.0146,69045.0,69040.0,0.54043648]
[1771032614108,0.0146,69045.0,69040.0,0.78801457]
[1771032614510,0.0146,69045.0,69040.0,0.80250415]
[1771032615208,0.029091,69045.0,69040.0,0.80250415]
[1771032615405,0.029091,69045.0,69040.0,0.78801457]
[1771032615610,0.014491,69044.0,69040.0,0.78801457]
[1771032615797,0.014491,69044.0,69040.0,0.56724851]
[1771032615798,0.00094073,69042.0,69040.0,0.56724851]
[1771032616110,0.014491,69044.0,69041.0,0.01448958]
[1771032616308,0.014492,69042.0,69040.0,0.24757809]
[1771032616505,0.014491,69043.0,69034.0,0.029093]
[1771032616709,0.029051,69042.0,69040.0,0.003]
[1771032617409,0.029051,69042.0,69041.0,0.01448958]
[1771032618309,0.029051,69042.0,69041.0,0.01648958]
[1771032619309,0.014493,69033.0,69025.0,0.14492]
[1771032619512,0.014494,69031.0,69026.0,0.01456]
[1771032619719,0.014494,69031.0,69026.0,0.65619428]
[1771032620302,0.014494,69029.0,69026.0,0.65619428]
[1771032620506,0.01456,69036.0,69026.0,0.01456]
[1771032620704,0.014494,69029.0,69026.0,0.01456]
[1771032621211,0.014494,69029.0,69026.0,0.02056]
[1771032621712,0.014494,69031.0,69026.0,0.25925316]
[1771032622009,0.01456,69033.0,69026.0,0.26525316]